[Event "360 One Wealth GP-4 2024"]
[Site "Mumbai"]
[Date "2024.03.14"]
[Round "4.12"]
[White "Mukul Samir Rane"]
[Black "Nirvaan Nirav Shah"]
[Result "0-1"]
[ECO "B23"]
[WhiteElo "1506"]
[BlackElo "1625"]
[Annotator "NA RC"]
[PlyCount "86"]
[EventDate "2024.03.10"]
[EventCountry "IND"]
[SourceTitle "playchess.com"]
[Source "ChessBase"]
[SourceQuality "1"]
[TimeControl "5400+30"]

1. e4 {[%emt 0:02:03]} c5 {[%emt 0:00:26]} 2. Nc3 {[%emt 0:04:59]} a6 {[%emt 0:00:17]} 3. f4 {[%emt 0:02:40]} b5 {[%emt 0:00:46]} 4. a3 {[%emt 0:00:28]} Bb7 {[%emt 0:00:09]} 5. Nf3 {[%emt 0:01:47]} e6 {[%emt 0:00:42]} 6. d3 {[%emt 0:02:00]} d6 {[%emt 0:01:43]} 7. Be3 {[%emt 0:02:43]} Nf6 {[%emt 0:01:00]} 8. Ne2 {[%emt 0:01:42]} Be7 {[%emt 0:02:37]} 9. Ng3 {[%emt 0:00:23]} Nbd7 {[%emt 0:02:05]} 10. Be2 {[%emt 0:00:50]} Rc8 {[%emt 0:03:50]} 11. Rc1 {[%emt 0:06:25]} Nb6 {[%emt 0:02:18]} 12. O-O {[%emt 0:08:55]} O-O {[%emt 0:03:34]} 13. Qd2 {[%emt 0:00:36]} Ng4 {[%emt 0:01:33]} 14. Bf2 {[%emt 0:01:28]} Nxf2 {[%emt 0:01:10]} 15. Rxf2 {[%emt 0:00:24]} Bf6 {[%emt 0:03:07]} 16. e5 {[%emt 0:03:17]} dxe5 {[%emt 0:01:08]} 17. fxe5 {[%emt 0:00:04]} Be7 {[%emt 0:00:35]} 18. Rff1 {[%emt 0:03:50]} Bxf3 {[%emt 0:01:25]} 19. gxf3 {[%emt 0:01:28]} Qd4+ {[%emt 0:00:40]} 20. Kg2 {[%emt 0:01:45]} Nd5 {[%emt 0:01:29]} 21. Rf2 {[%emt 0:05:53]} Qxe5 {[%emt 0:01:02]} 22. c3 {[%emt 0:01:23]} Bg5 {[%emt 0:00:16]} 23. Qe1 {[%emt 0:05:29]} Bxc1 {[%emt 0:00:29]} 24. Qxc1 {[%emt 0:00:08]} Nf4+ {[%emt 0:00:17]} 25. Kh1 {[%emt 0:00:10]} Nxe2 {[%emt 0:00:08]} 26. Rxe2 {[%emt 0:00:05]} Qd5 {[%emt 0:00:18]} 27. Qe3 {[%emt 0:00:46]} Rfd8 {[%emt 0:00:57]} 28. Rd2 {[%emt 0:00:55]} c4 {[%emt 0:00:58]} 29. d4 {[%emt 0:00:13]} Re8 {[%emt 0:01:41]} 30. Ne4 {[%emt 0:00:46]} f5 {[%emt 0:01:18]} 31. Nc5 {[%emt 0:03:40]} e5 {[%emt 0:01:21]} 32. Qf2 {[%emt 0:09:09]} Rc6 {[%emt 0:03:20]} 33. Qe3 {[%emt 0:01:37]} f4 {[%emt 0:00:54]} 34. Qf2 {[%emt 0:03:18]} exd4 {[%emt 0:00:29]} 35. Rxd4 {[%emt 0:00:20]} Qxc5 {[%emt 0:00:33]} 36. Qd2 {[%emt 0:01:37]} Rce6 {[%emt 0:02:41]} 37. Re4 {[%emt 0:00:58]} Rxe4 {[%emt 0:00:15]} 38. fxe4 {[%emt 0:00:02]} Qe3 {[%emt 0:00:13]} 39. Qd5+ {[%emt 0:00:14]} Kh8 {[%emt 0:00:06]} 40. Qh5 {[%emt 0:01:20]} Qxe4+ {[%emt 0:00:09]} 41. Kg1 {[%emt 0:00:06]} Qe1+ {[%emt 0:00:38]} 42. Kg2 {[%emt 0:00:08]} f3+ {[%emt 0:00:18]} 43. Kxf3 {[%emt 0:00:26]} Qe2+ {[%emt 0:00:09]} 0-1

[Event "360 One Wealth GP-4 2024"]
[Site "Mumbai"]
[Date "2024.03.14"]
[Round "4.14"]
[White "Khanak Paharia"]
[Black "Yuti Mayur Patel"]
[Result "1/2-1/2"]
[ECO "D37"]
[WhiteElo "1492"]
[BlackElo "1621"]
[Annotator "NA RC"]
[PlyCount "94"]
[EventDate "2024.03.10"]
[EventCountry "IND"]
[SourceTitle "playchess.com"]
[Source "ChessBase"]
[SourceQuality "1"]
[TimeControl "5400+30"]

1. Nf3 {[%emt 0:07:15]} d5 {[%emt 0:00:06]} 2. c4 {[%emt 0:00:11]} e6 {[%emt 0:00:09]} 3. d4 {[%emt 0:00:09]} Nf6 {[%emt 0:00:07]} 4. Bf4 {[%emt 0:00:45]} Be7 {[%emt 0:01:14]} 5. e3 {[%emt 0:00:20]} O-O {[%emt 0:00:14]} 6. Bd3 {[%emt 0:00:46]} Nbd7 {[%emt 0:01:15]} 7. O-O {[%emt 0:00:44]} c6 {[%emt 0:01:53]} 8. Nc3 {[%emt 0:01:14]} b6 {[%emt 0:02:23]} 9. Qc2 {[%emt 0:03:54]} Bb7 {[%emt 0:00:15]} 10. Rad1 {[%emt 0:02:04]} h6 {[%emt 0:04:29]} 11. Rfe1 {[%emt 0:08:53]} Nh5 {[%emt 0:02:00]} 12. Bg3 {[%emt 0:01:21]} Nxg3 {[%emt 0:05:04]} 13. hxg3 {[%emt 0:01:00]} f5 {[%emt 0:01:02]} 14. Ne2 {[%emt 0:09:09]} Qe8 {[%emt 0:01:42]} 15. cxd5 {[%emt 0:06:30]} cxd5 {[%emt 0:00:51]} 16. Qc7 {[%emt 0:05:03]} Qc8 {[%emt 0:08:06]} 17. Rc1 {[%emt 0:01:31]} Bb4 {[%emt 0:02:13]} 18. Red1 {[%emt 0:05:32]} Qxc7 {[%emt 0:01:50]} 19. Rxc7 {[%emt 0:00:49]} Bc8 {[%emt 0:00:03]} 20. a3 {[%emt 0:02:01]} Be7 {[%emt 0:00:41]} 21. Rdc1 {[%emt 0:11:03]} Rd8 {[%emt 0:03:09]} 22. Bb5 {[%emt 0:06:47]} Bd6 {[%emt 0:02:43]} 23. Rxc8 {[%emt 0:03:47]} Raxc8 {[%emt 0:00:31]} 24. Rxc8 {[%emt 0:00:12]} Rxc8 {[%emt 0:00:04]} 25. Bxd7 {[%emt 0:00:05]} Rc2 {[%emt 0:00:19]} 26. Bxe6+ {[%emt 0:01:45]} Kf8 {[%emt 0:00:07]} 27. Nc3 {[%emt 0:02:16]} Rxb2 {[%emt 0:00:25]} 28. a4 {[%emt 0:01:09]} Rc2 {[%emt 0:03:28]} 29. Nb5 {[%emt 0:01:34]} Bb8 {[%emt 0:00:51]} 30. Kf1 {[%emt 0:03:35]} a6 {[%emt 0:02:13]} 31. Na3 {[%emt 0:00:38]} Rc1+ {[%emt 0:05:58]} 32. Ke2 {[%emt 0:00:57]} Bd6 {[%emt 0:00:10]} 33. Nb5 {[%emt 0:03:21]} axb5 {[%emt 0:00:32]} 34. axb5 {[%emt 0:00:01]} Rc2+ {[%emt 0:01:37]} 35. Kf1 {[%emt 0:00:44]} Rb2 {[%emt 0:00:39]} 36. Bd7 {[%emt 0:00:32]} Ke7 {[%emt 0:02:05]} 37. Bc6 {[%emt 0:00:32]} g5 {[%emt 0:02:04]} 38. Ne1 {[%emt 0:01:31]} Ke6 {[%emt 0:00:39]} 39. f4 {[%emt 0:03:28]} g4 {[%emt 0:01:01]} 40. Nd3 {[%emt 0:01:14]} Rd2 {[%emt 0:00:48]} 41. Ne5 {[%emt 0:00:37]} Bb4 {[%emt 0:03:08]} 42. Bd7+ {[%emt 0:02:21]} Kf6 {[%emt 0:00:36]} 43. Bc6 {[%emt 0:00:24]} Ba5 {[%emt 0:05:40]} 44. Bxd5 {[%emt 0:01:18]} Rd1+ {[%emt 0:00:39]} 45. Ke2 {[%emt 0:01:40]} Rd2+ {[%emt 0:00:03]} 46. Kf1 {[%emt 0:00:19]} Rd1+ {[%emt 0:00:10]} 47. Ke2 {[%emt 0:00:32]} Rd2+ {[%emt 0:00:13]} 1/2-1/2

[Event "360 One Wealth GP-4 2024"]
[Site "Mumbai"]
[Date "2024.03.14"]
[Round "4.15"]
[White "Jain Bharggav"]
[Black "Sriharsh Shibu Nair"]
[Result "0-1"]
[ECO "A36"]
[WhiteElo "1617"]
[BlackElo "1455"]
[Annotator "NA RC"]
[PlyCount "72"]
[EventDate "2024.03.10"]
[EventCountry "IND"]
[SourceTitle "playchess.com"]
[Source "ChessBase"]
[SourceQuality "1"]
[TimeControl "5400+30"]

1. e4 c5 {[%emt 0:12:48]} 2. c4 d6 {[%emt 0:01:43]} 3. g3 Nf6 {[%emt 0:00:34]} 4. Bg2 Nc6 {[%emt 0:00:36]} 5. Nc3 e6 {[%emt 0:00:53]} 6. Nge2 a6 {[%emt 0:01:47]} 7. a3 Be7 {[%emt 0:02:20]} 8. d3 Rb8 {[%emt 0:01:23]} 9. Rb1 b5 {[%emt 0:01:24]} 10. cxb5 axb5 {[%emt 0:04:49]} 11. b4 cxb4 {[%emt 0:02:21]} 12. axb4 d5 {[%emt 0:00:43]} 13. exd5 {[%emt 0:03:05]} exd5 {[%emt 0:00:38]} 14. Ba3 {[%emt 0:10:36]} O-O {[%emt 0:00:50]} 15. Nf4 {[%emt 0:05:04]} Re8 {[%emt 0:00:41]} 16. O-O {[%emt 0:01:16]} Be6 {[%emt 0:00:26]} 17. Re1 {[%emt 0:02:32]} Qd7 {[%emt 0:00:33]} 18. Nxe6 {[%emt 0:08:21]} fxe6 {[%emt 0:01:27]} 19. Bh3 {[%emt 0:06:40]} Bd6 {[%emt 0:00:46]} 20. Qb3 {[%emt 0:03:55]} Nd4 {[%emt 0:01:54]} 21. Qd1 {[%emt 0:00:12]} Qf7 {[%emt 0:00:43]} 22. Bc1 {[%emt 0:05:31]} Nd7 {[%emt 0:04:59]} 23. Be3 {[%emt 0:02:57]} Nf3+ {[%emt 0:00:31]} 24. Kf1 {[%emt 0:01:29]} Nxe1 {[%emt 0:00:20]} 25. Qxe1 {[%emt 0:00:10]} Ne5 {[%emt 0:00:21]} 26. f4 Nxd3 {[%emt 0:02:35]} 27. Qd2 Nxb4 {[%emt 0:02:02]} 28. Bg2 Qf5 {[%emt 0:05:52]} 29. Be4 Qf8 {[%emt 0:04:44]} 30. Bg2 Bc5 {[%emt 0:02:52]} 31. Qe2 d4 {[%emt 0:05:24]} 32. Bxd4 Bxd4 {[%emt 0:01:31]} 33. Nxb5 Qc5 {[%emt 0:01:21]} 34. Nxd4 Qxd4 {[%emt 0:02:33]} 35. Rd1 Qc5 {[%emt 0:01:38]} 36. Qg4 Nc2 {[%emt 0:04:58]} 0-1

[Event "360 One Wealth GP-4 2024"]
[Site "Mumbai"]
[Date "2024.03.15"]
[Round "5.1"]
[White "Arnav Mahesh Koli"]
[Black "Guru Prakash"]
[Result "1/2-1/2"]
[ECO "B42"]
[WhiteElo "1857"]
[BlackElo "1794"]
[Annotator "NA RC"]
[PlyCount "86"]
[EventDate "2024.03.10"]
[EventCountry "IND"]
[SourceTitle "playchess.com"]
[Source "ChessBase"]
[SourceQuality "1"]
[TimeControl "5400+30"]

1. e4 {[%emt 0:00:10]} c5 {[%emt 0:00:12]} 2. Nf3 {[%emt 0:00:13]} e6 {[%emt 0:00:15]} 3. d4 {[%emt 0:00:32]} cxd4 {[%emt 0:00:10]} 4. Nxd4 {[%emt 0:00:03]} a6 {[%emt 0:00:05]} 5. Bd3 {[%emt 0:03:28]} Qc7 {[%emt 0:00:35]} 6. Be3 {[%emt 0:01:32]} Nf6 {[%emt 0:01:08]} 7. f4 {[%emt 0:03:29] B42: Sicilian: Kan Variation: 5 Bd3.} d6 {[%emt 0:03:31]} 8. h3 {[%emt 0:02:38]} Nbd7 {[%emt 0:06:19]} 9. Nd2 {[%emt 0:03:04]} (9. c4 $142) 9... Nc5 {[%emt 0:08:09]} 10. O-O {[%emt 0:01:49]} b5 {[%emt 0:02:45]} 11. b4 {[%emt 0:02:46]} Na4 $1 {[%emt 0:11:53]} 12. g4 {[%emt 0:14:25]} (12. c4 $14 Nb2 13. Qc2 Nxd3 14. Qxd3 bxc4 15. Nxc4) 12... Nc3 {[%emt 0:05:08]} 13. Qf3 {[%emt 0:00:18]} Bb7 {[%emt 0:01:22]} 14. g5 {[%emt 0:05:31]} Nd7 {[%emt 0:02:34]} 15. Ne2 {[%emt 0:00:42]} d5 {[%emt 0:14:55]} 16. Nxc3 {[%emt 0:03:08]} Qxc3 {[%emt 0:00:04]} 17. Rab1 {[%emt 0:00:40]} Rd8 {[%emt 0:08:32]} 18. Rb3 {[%emt 0:02:53]} Qc7 {[%emt 0:02:48]} 19. Bd4 {[%emt 0:09:16]} Bd6 {[%emt 0:03:40]} (19... Nb6 $1 $11 {remains equal.} 20. e5 g6) 20. Qf2 {[%emt 0:25:08]} ({White should try} 20. Bxg7 $16 Qb6+ 21. Kh1) 20... O-O {[%emt 0:09:42]} 21. e5 {[%emt 0:03:07]} Be7 {[%emt 0:00:22]} 22. Qh4 {[%emt 0:00:06]} g6 {[%emt 0:01:36]} 23. Nf3 {[%emt 0:02:41]} Nb8 {[%emt 0:01:59] [#]} 24. Qf2 $1 {[%emt 0:07:02]} Qd7 {[%emt 0:01:29] [#]} 25. Nh2 $1 {[%emt 0:00:38]} Nc6 {[%emt 0:02:31]} 26. c3 {[%emt 0:02:11]} Nxd4 {[%emt 0:01:51]} 27. cxd4 {[%emt 0:00:01]} Rc8 {[%emt 0:00:33]} 28. Ng4 {[%emt 0:00:07]} Rc7 $16 {[%emt 0:00:41]} 29. Nf6+ {[%emt 0:02:12]} Bxf6 {[%emt 0:00:05]} 30. gxf6 {[%emt 0:00:06]} Rfc8 {[%emt 0:01:02]} 31. Qd2 {[%emt 0:01:53]} Kh8 {[%emt 0:01:21]} 32. Kh2 {[%emt 0:01:51]} Rc4 {[%emt 0:02:25]} 33. f5 {[%emt 0:00:25]} exf5 {[%emt 0:00:36]} 34. Qh6 {[%emt 0:00:13]} Rg8 {[%emt 0:00:40]} 35. Rf4 {[%emt 0:00:09]} Rxd4 {[%emt 0:01:22]} 36. Rxd4 {[%emt 0:00:58]} g5 {[%emt 0:00:01]} 37. Bb1 {[%emt 0:00:51]} Qc7 {[%emt 0:00:16]} 38. Re3 {[%emt 0:00:11]} Bc8 {[%emt 0:00:14]} 39. Rg4 {[%emt 0:01:48]} Rg6 {[%emt 0:00:20]} 40. Qf8+ {[%emt 0:00:29]} Rg8 41. Qh6 {[%emt 0:00:33]} Rg6 {[%emt 0:00:31]} 42. Qf8+ {[%emt 0:01:25]} Rg8 {[%emt 0:00:01]} 43. Qh6 {[%emt 0:00:01]} Rg6 1/2-1/2

[Event "360 One Wealth GP-4 2024"]
[Site "Mumbai"]
[Date "2024.03.15"]
[Round "5.2"]
[White "Milind Parle"]
[Black "Kulkarni, Vikramaditya"]
[Result "0-1"]
[ECO "B23"]
[WhiteElo "1642"]
[BlackElo "2192"]
[Annotator "RC"]
[PlyCount "75"]
[EventDate "2024.03.10"]
[EventCountry "IND"]
[SourceTitle "playchess.com"]
[Source "ChessBase"]
[SourceQuality "1"]
[TimeControl "5400+30"]

1. e4 {[%emt 0:00:08]} c5 {[%emt 0:00:33]} 2. Nc3 {[%emt 0:00:26]} a6 {[%emt 0:00:15]} 3. f4 {[%emt 0:00:19]} b5 {[%emt 0:00:11]} 4. d3 {[%emt 0:00:31]} b4 {[%emt 0:00:38]} 5. Nce2 {[%emt 0:00:55]} d5 {[%emt 0:00:11]} 6. exd5 {[%emt 0:00:57]} e6 {[%emt 0:02:51]} 7. dxe6 {[%emt 0:00:47]} Bxe6 {[%emt 0:00:20]} 8. Nf3 {[%emt 0:00:07]} Bd5 {[%emt 0:07:32]} 9. Ng3 {[%emt 0:00:34]} Qe7+ {[%emt 0:00:14]} 10. Qe2 {[%emt 0:00:50]} Bxf3 {[%emt 0:00:04]} 11. Qxe7+ {[%emt 0:00:32]} Nxe7 {[%emt 0:00:47]} 12. gxf3 {[%emt 0:00:03]} Nbc6 {[%emt 0:00:31]} 13. c3 {[%emt 0:01:22]} f5 {[%emt 0:00:51]} 14. Bd2 {[%emt 0:06:20]} g6 {[%emt 0:00:42]} 15. h4 {[%emt 0:01:39]} h5 {[%emt 0:00:02]} 16. a3 {[%emt 0:06:08]} bxc3 {[%emt 0:00:03]} 17. Bxc3 {[%emt 0:01:53]} Nd4 {[%emt 0:01:03]} 18. Kf2 {[%emt 0:08:42]} Nd5 {[%emt 0:05:53]} 19. Bxd4 {[%emt 0:02:13]} cxd4 {[%emt 0:00:04]} 20. Ne2 {[%emt 0:00:20]} Rc8 {[%emt 0:05:28]} 21. Kg3 {[%emt 0:05:07]} Bd6 {[%emt 0:01:44]} 22. Bg2 {[%emt 0:07:14]} Kf7 {[%emt 0:03:01]} 23. Rac1 {[%emt 0:00:57]} Rhe8 {[%emt 0:00:22]} 24. Rxc8 {[%emt 0:01:40]} Rxe2 {[%emt 0:00:56]} 25. Rd8 {[%emt 0:03:29]} Ke7 {[%emt 0:06:32]} 26. Rxd6 {[%emt 0:06:53]} Kxd6 {[%emt 0:00:03]} 27. Rb1 {[%emt 0:04:01]} a5 {[%emt 0:00:48]} 28. Bf1 {[%emt 0:04:50]} Rc2 {[%emt 0:03:44]} 29. b4 {[%emt 0:00:41]} a4 {[%emt 0:00:07]} 30. b5 {[%emt 0:04:22]} Rc3 {[%emt 0:00:24]} 31. Be2 {[%emt 0:06:28]} Rxa3 {[%emt 0:01:08]} 32. b6 {[%emt 0:04:50]} Rb3 {[%emt 0:00:24]} 33. Ra1 {[%emt 0:00:26]} Nc3 {[%emt 0:00:18]} 34. Bd1 {[%emt 0:01:38]} Rxb6 {[%emt 0:00:11]} 35. Bc2 {[%emt 0:00:48]} Rb7 {[%emt 0:02:24]} 36. Ra3 {[%emt 0:03:10]} Rb8 {[%emt 0:00:51]} 37. Ra1 {[%emt 0:00:22]} Re8 {[%emt 0:00:45]} 38. Bd1 {[%emt 0:01:48]} 0-1

[Event "360 One Wealth GP-4 2024"]
[Site "Mumbai"]
[Date "2024.03.15"]
[Round "5.3"]
[White "Iyer Arvind"]
[Black "Ishan Roy"]
[Result "1-0"]
[ECO "E54"]
[WhiteElo "1897"]
[BlackElo "1609"]
[Annotator "NA RC"]
[PlyCount "111"]
[EventDate "2024.03.10"]
[EventCountry "IND"]
[SourceTitle "playchess.com"]
[Source "ChessBase"]
[SourceQuality "1"]
[TimeControl "5400+30"]

1. e4 {[%emt 0:16:55]} e6 {[%emt 0:00:06]} 2. d4 {[%emt 0:00:17]} d5 {[%emt 0:00:01]} 3. Nd2 {[%emt 0:00:19]} c5 {[%emt 0:00:02]} 4. c3 {[%emt 0:00:09]} cxd4 {[%emt 0:00:04]} 5. cxd4 {[%emt 0:00:06]} dxe4 {[%emt 0:00:07]} 6. Nxe4 {[%emt 0:00:28]} Bb4+ {[%emt 0:00:03]} 7. Nc3 {[%emt 0:01:43]} Nf6 {[%emt 0:00:02]} 8. Nf3 {[%emt 0:00:24]} O-O {[%emt 0:00:03]} 9. Bd3 {[%emt 0:01:26]} b6 {[%emt 0:00:09]} 10. O-O {[%emt 0:03:57]} Bb7 {[%emt 0:00:02]} 11. a3 {[%emt 0:00:50] 11.Re1 is vanishing.} Be7 {[%emt 0:00:59] E54: Nimzo-Indian: Rubinstein: Main Line: 7...dxc4 8 Bxc4.} 12. Qe2 {[%emt 0:05:41]} Nc6 {[%emt 0:03:14]} 13. Rd1 {[%emt 0:03:22]} h6 $146 {[%emt 0:18:27]} ({Predecessor:} 13... Qc7 14. Nb5 Qd7 15. Bf4 Nd5 16. Bg3 Rfd8 17. Ne5 Nxe5 18. dxe5 Ba6 19. h4 Rac8 {1-0 Narayanan,S (2553)-Pranav,V (2493) BAN-chT Dhaka 2022 (4.5)}) 14. Bf4 {[%emt 0:05:01]} Rc8 {[%emt 0:07:22]} (14... Nxd4 $2 {loses.} 15. Nxd4 Kh8 (15... Qxd4 $2 {is the wrong capture.} 16. Bh7+ Kxh7 17. Rxd4 $18) 16. Bb5 $18) 15. Rac1 {[%emt 0:08:38]} Na5 {[%emt 0:08:48]} (15... Nxd4 $2 {perishes.} 16. Nxd4 Nd5 (16... Qxd4 $2 {is the wrong capture.} 17. Bh7+ Kxh7 18. Rxd4 $18) 17. Qe4 $18) 16. Ba6 {[%emt 0:00:53]} Nd5 {[%emt 0:13:33]} 17. Bxb7 {[%emt 0:15:17]} Nxf4 {[%emt 0:19:40]} 18. Qe4 {[%emt 0:00:57]} Nxb7 {[%emt 0:03:59]} 19. Qxf4 {[%emt 0:00:33]} Bd6 {[%emt 0:01:43]} 20. Qe4 {[%emt 0:04:25]} Na5 {[%emt 0:04:11]} 21. g3 {[%emt 0:01:01]} Nc4 {[%emt 0:04:34]} 22. Qe2 {[%emt 0:01:58]} a5 {[%emt 0:04:12]} 23. Nb5 {[%emt 0:05:25]} Qf6 {[%emt 0:06:46]} 24. Rxc4 {[%emt 0:01:20]} Rxc4 {[%emt 0:00:08]} 25. Qxc4 $18 {[%emt 0:03:17]} ({Weaker is} 25. Nxd6 Rc6 $18) 25... Qxf3 {[%emt 0:00:02]} 26. Rd3 {[%emt 0:00:07]} Qe2 {[%emt 0:02:19]} 27. Nxd6 {[%emt 0:00:08]} Rd8 {[%emt 0:00:07]} 28. Nb5 {[%emt 0:00:51]} Rd5 {[%emt 0:01:25]} 29. Nc3 {[%emt 0:01:12]} Qc2 {[%emt 0:01:07]} 30. Rf3 {[%emt 0:01:20]} Rd8 {[%emt 0:01:24]} 31. Qe2 {[%emt 0:05:35]} Qc1+ {[%emt 0:00:14]} 32. Kg2 {[%emt 0:00:54]} Rxd4 {[%emt 0:00:41]} 33. Qe3 {[%emt 0:00:00]} Qd2 {[%emt 0:00:44]} 34. Nb5 {[%emt 0:00:40]} Rd5 {[%emt 0:00:34]} 35. Qxd2 {[%emt 0:00:08]} Rxd2 {[%emt 0:00:05]} 36. Rb3 {[%emt 0:00:03]} a4 {[%emt 0:00:41]} 37. Rb4 {[%emt 0:00:07]} e5 {[%emt 0:00:05]} 38. Nc3 {[%emt 0:00:23]} f5 {[%emt 0:00:24]} 39. Nxa4 {[%emt 0:00:44]} e4 {[%emt 0:00:05]} 40. Rb3 {[%emt 0:00:22]} b5 {[%emt 0:00:06]} 41. Rxb5 {[%emt 0:00:54]} e3 {[%emt 0:00:06]} 42. Rxf5 {[%emt 0:00:04]} g6 {[%emt 0:00:54]} 43. Rf3 {[%emt 0:00:06]} Rd4 {[%emt 0:00:46]} 44. Nc3 {[%emt 0:00:06]} Rd2 {[%emt 0:00:07]} 45. Rxe3 {[%emt 0:00:04]} Rxb2 {[%emt 0:00:05]} 46. a4 {[%emt 0:00:17]} Rb3 {[%emt 0:00:05]} 47. Nd5 {[%emt 0:00:09]} Rb7 {[%emt 0:00:15]} 48. Ra3 {[%emt 0:00:31]} Kf7 {[%emt 0:00:06]} 49. a5 {[%emt 0:00:07]} Ke6 {[%emt 0:00:04]} 50. a6 {[%emt 0:00:08]} Ra7 {[%emt 0:00:06]} 51. Nb6 {[%emt 0:00:03]} h5 {[%emt 0:00:17]} 52. Nc8 {[%emt 0:00:08]} Ra8 {[%emt 0:00:02]} 53. a7 {[%emt 0:00:05]} Kd5 {[%emt 0:01:44]} 54. Nb6+ {[%emt 0:00:32]} Kc5 {[%emt 0:00:04]} 55. Nxa8 {[%emt 0:00:03]} Kb4 {[%emt 0:00:04]} 56. Ra1 {[%emt 0:00:13]} 1-0

[Event "360 One Wealth GP-4 2024"]
[Site "Mumbai"]
[Date "2024.03.15"]
[Round "5.4"]
[White "Shah Mihir"]
[Black "Boricha Yohan"]
[Result "1-0"]
[ECO "D00"]
[WhiteElo "1764"]
[BlackElo "1840"]
[Annotator "NA RC"]
[PlyCount "99"]
[EventDate "2024.03.10"]
[EventCountry "IND"]
[SourceTitle "playchess.com"]
[Source "ChessBase"]
[SourceQuality "1"]
[TimeControl "5400+30"]

1. d4 {[%emt 0:00:37]} Nf6 {[%emt 0:00:51]} 2. Nc3 {[%emt 0:00:27]} d5 {[%emt 0:00:00]} 3. Bf4 {[%emt 0:00:07]} c5 {[%emt 0:00:00]} 4. e4 {[%emt 0:00:29]} Nxe4 {[%emt 0:00:06]} 5. Nxe4 {[%emt 0:00:08]} dxe4 {[%emt 0:00:03]} 6. dxc5 {[%emt 0:00:08] D00: 1 d4 d5: Unusual lines.} Qa5+ {[%emt 0:00:37]} 7. c3 {[%emt 0:00:06]} Qxc5 {[%emt 0:01:14]} 8. Qa4+ {[%emt 0:00:07]} Nc6 {[%emt 0:00:57]} 9. Qxe4 {[%emt 0:00:15]} g6 {[%emt 0:03:46]} 10. Nf3 {[%emt 0:00:13]} Bg7 {[%emt 0:03:38]} 11. Rd1 {[%emt 0:00:06]} Qf5 {[%emt 0:13:47]} 12. Bd3 {[%emt 0:14:23]} Qxe4+ {[%emt 0:15:25]} 13. Bxe4 {[%emt 0:00:06]} Be6 {[%emt 0:00:22]} 14. Bd5 {[%emt 0:02:05]} Bxd5 {[%emt 0:01:05]} 15. Rxd5 {[%emt 0:00:08]} Rd8 {[%emt 0:00:33]} 16. Rxd8+ {[%emt 0:09:15]} Kxd8 {[%emt 0:04:53]} 17. Ng5 {[%emt 0:05:26]} Ke8 {[%emt 0:00:07]} 18. Ke2 {[%emt 0:01:28]} h6 {[%emt 0:04:22]} 19. Ne4 {[%emt 0:02:13]} b6 {[%emt 0:10:33]} 20. f3 {[%emt 0:04:33]} f5 {[%emt 0:01:41]} 21. Nf2 {[%emt 0:03:31]} e5 {[%emt 0:01:56]} 22. Be3 {[%emt 0:01:19]} Kf7 {[%emt 0:03:26]} 23. g4 {[%emt 0:03:20]} Rd8 {[%emt 0:06:22]} 24. h4 {[%emt 0:02:30]} Ne7 {[%emt 0:03:35]} 25. h5 {[%emt 0:01:05]} g5 {[%emt 0:01:06]} 26. gxf5 {[%emt 0:01:04]} Nxf5 {[%emt 0:00:27]} 27. Ne4 {[%emt 0:00:17]} Nd6 {[%emt 0:02:05]} (27... Bf8 $11 {is superior.}) 28. Rd1 {[%emt 0:02:57]} Ke7 $2 {[%emt 0:00:11]} (28... Bf8 $14) 29. Rxd6 {[%emt 0:07:26]} Rxd6 {[%emt 0:00:06]} 30. Nxd6 {[%emt 0:00:06]} Kxd6 {[%emt 0:00:03]} 31. Kd3 {[%emt 0:00:39]} Bf8 {[%emt 0:03:44]} 32. Ke4 {[%emt 0:03:38]} Ke6 {[%emt 0:00:20]} 33. b4 {[%emt 0:09:18]} Bd6 {[%emt 0:04:16]} 34. b5 {[%emt 0:10:56]} Ba3 {[%emt 0:01:52]} 35. c4 {[%emt 0:01:07]} Kf6 {[%emt 0:05:05]} 36. Bd2 {[%emt 0:01:07]} Ke6 {[%emt 0:01:59]} 37. Bc3 {[%emt 0:00:20]} Bd6 {[%emt 0:00:16]} 38. Bb2 {[%emt 0:02:06]} Kf6 $18 {[%emt 0:01:31]} 39. Kd5 {[%emt 0:00:15]} Bb8 {[%emt 0:00:08]} 40. Ba3 {[%emt 0:00:37]} Kf5 {[%emt 0:00:51]} 41. Bf8 {[%emt 0:01:48]} e4 {[%emt 0:04:07]} 42. fxe4+ {[%emt 0:00:18]} Kf6 {[%emt 0:00:04]} 43. Bxh6 {[%emt 0:00:58]} g4 {[%emt 0:00:13]} 44. Be3 {[%emt 0:01:23]} Bh2 {[%emt 0:00:36]} 45. c5 {[%emt 0:00:33]} bxc5 {[%emt 0:00:31]} 46. Bxc5 {[%emt 0:00:29]} g3 {[%emt 0:00:10]} 47. Bxa7 {[%emt 0:00:16]} g2 {[%emt 0:00:11]} 48. Be3 {[%emt 0:02:49]} g1=Q {[%emt 0:00:19]} 49. Bxg1 {[%emt 0:00:06]} Bxg1 {[%emt 0:00:08]} 50. a4 {[%emt 0:00:23]} 1-0